[Event "FIDE World Senior-50 CC 2023"]
[Site "Terrasini"]
[Date "2023.10.28"]
[Round "4.3"]
[White "Adams, Michael"]
[Black "Cummings, David H."]
[Result "1-0"]
[ECO "B12"]
[WhiteElo "2670"]
[BlackElo "2325"]
[Annotator "TA"]
[PlyCount "109"]
[EventDate "2023.10.22"]
[EventType "swiss"]
[EventCountry "ITA"]
[SourceTitle "playchess.com"]
[Source "ChessBase"]
[SourceQuality "1"]
[TimeControl "40/5400+30:1800+30"]

{[%evp 12,109,10,12,10,13,11,-5,8,0,4,-34,-36,-43,26,-17,-6,-5,-4,-14,0,-22,0,-2,0,0,6,0,30,20,76,11,80,79,72,68,115,117,140,142,131,135,145,133,133,113,118,123,123,120,129,126,153,152,160,148,209,202,208,187,187,181,172,182,202,204,198,200,197,171,171,171,192,185,179,141,156,112,112,116,116,116,162,161,166,159,281,270,400,346,539,535,526,518,529,488,641,599,580,562]} 1. e4 {[%emt 0:00:03]} c6 {[%emt 0:00:10][%cal Bc7c6,Bc6c5][%mdl 32]} 2. d4 {[%emt 0:00:10]} d5 {[%emt 0:00:07]} 3. e5 {[%emt 0:00:04]} c5 {[%emt 0:00:17]} 4. c3 {[%emt 0:00:09]} Nc6 {[%emt 0:00:33]} 5. Be2 {[%emt 0:00:09]} Bf5 {[%emt 0:00:47]} 6. Nf3 {[%emt 0:00:09]} e6 {[%emt 0:00:59]} 7. O-O {[%emt 0:00:07]} cxd4 {[%emt 0:01:14] B12: Caro-Kann: Advance Variation.} 8. Nxd4 {[%emt 0:02:10]} Nge7 {[%emt 0:00:56]} 9. Bb5 {[%emt 0:02:50]} Qc7 {[%emt 0:01:04] [#] The position is equal.} (9... Bg6 $5 {[%cal Ra7a6]}) 10. Na3 $146 {[%emt 0:04:35][%cal Bb1a3,Ba3c2,Bc2e3][%mdl 32]} ({Predecessor:} 10. Qa4 a6 11. Bg5 Rc8 12. Bxc6+ Nxc6 13. Nxf5 exf5 14. Rd1 Bc5 15. Rxd5 Qb6 16. Qc2 {½-½ Pranesh,M (2503)-Xie,K (2369) Abu Dhabi op 29th 2023 (2)}) 10... Be4 {[%emt 0:05:24]} 11. Qe2 {[%emt 0:14:00][%cal Oa3c4]} a6 {[%emt 0:07:12]} 12. Ba4 $1 {[%emt 0:00:16][%cal Oa3c4]} Qa5 {[%emt 0:11:30]} (12... Qxe5 $2 13. f3 $18) ({Black should try} 12... Nc8 $15) 13. Bc2 {[%emt 0:04:25]} (13. b3 {seems wilder.} Qc7 14. Nc4 Nc8 15. Nxc6 b5 16. N4a5) 13... Nxd4 {[%emt 0:01:50]} ({Don't do} 13... Nxe5 14. Bxe4 dxe4 15. Qxe4 $11) 14. cxd4 {[%emt 0:00:02]} Bxc2 {[%emt 0:05:18]} 15. Nxc2 {[%emt 0:00:07]} Rc8 {[%emt 0:10:42]} 16. Rd1 {[%emt 0:08:33]} h5 {[%emt 0:11:46]} 17. h3 {[%emt 0:03:56]} Qb5 {[%emt 0:02:36]} 18. Rd3 {[%emt 0:01:48]} Nf5 {[%emt 0:00:23]} 19. Qd1 {[%emt 0:04:04]} h4 {[%emt 0:03:21]} 20. Ne3 {[%emt 0:09:04]} Be7 {[%emt 0:06:59]} (20... Nh6 $11) 21. Rb3 {[%emt 0:05:53]} ({Better is} 21. Nxf5 $16 exf5 22. Rb3) 21... Qd7 {[%emt 0:01:17]} (21... Nxe3 $11 22. Bxe3 Qd7) 22. Nxf5 $16 {[%emt 0:03:21]} exf5 {[%emt 0:00:07]} 23. Rb6 {[%emt 0:01:33]} O-O {[%emt 0:08:52] [#]} (23... Rc6 $14 24. Rxc6 Qxc6) 24. Qb3 $1 {[%emt 0:02:33]} Rc6 {[%emt 0:08:36]} 25. Rxb7 {[%emt 0:00:31]} Qe6 {[%emt 0:00:08]} 26. Bd2 {[%emt 0:02:40]} Rfc8 {[%emt 0:00:30]} 27. Re1 {[%emt 0:04:22]} Bd8 {[%emt 0:02:21]} 28. Bc3 {[%emt 0:07:18] White is much more active.} Rb6 {[%emt 0:01:23]} 29. Rxb6 {[%emt 0:00:11]} Bxb6 {[%emt 0:00:06]} 30. Qd1 {[%emt 0:20:27]} Rc4 {[%emt 0:03:20]} 31. Qd3 {[%emt 0:00:00]} a5 {[%emt 0:01:33]} 32. b3 {[%emt 0:00:00]} Rc8 {[%emt 0:02:17]} 33. Bd2 {[%emt 0:00:00]} g6 {[%emt 0:01:18]} (33... Rc6 $16 34. Rf1 Qc8) 34. Bg5 $18 {[%emt 0:00:00]} Qc6 {[%emt 0:00:37]} 35. Bxh4 {[%emt 0:00:00]} Qc3 {[%emt 0:01:14] [#]} 36. Rd1 {[%emt 0:00:00]} Qxd3 {[%emt 0:00:13]} 37. Rxd3 {[%emt 0:00:00][%mdl 4096] Endgame KRB-KRB} Rc1+ {[%emt 0:00:12]} 38. Kh2 {[%emt 0:00:00]} Kf8 {[%emt 0:00:31]} 39. a4 {[%emt 0:00:00]} Rc2 {[%emt 0:00:21]} 40. f3 {[%emt 0:01:42]} Ke8 {[%emt 0:00:28]} 41. Bg5 {[%emt 0:31:33]} Kd7 {[%emt 0:02:59]} 42. h4 {[%emt 0:00:00]} Bd8 {[%emt 0:02:11]} 43. Bd2 {[%emt 0:00:00]} Rb2 {[%emt 0:03:01]} 44. g3 {[%emt 0:00:00]} f4 {[%emt 0:00:47]} 45. Kh3 {[%emt 0:00:00]} fxg3 {[%emt 0:00:09]} 46. Kxg3 {[%emt 0:00:00]} Rb1 {[%emt 0:05:03]} (46... Ke6 $16) 47. Bg5 {[%emt 0:00:00]} Bb6 {[%emt 0:01:22]} 48. Be3 {[%emt 0:00:00]} Rb2 {[%emt 0:00:54]} (48... Bd8 $16 {was worth a try.} 49. Kg4 Rh1) 49. Rc3 {[%emt 0:00:00]} Re2 {[%emt 0:00:59]} (49... Rb1 $142 50. f4 Rd1) 50. f4 {[%emt 0:00:00][%cal Of4f5] And now f5! would win.} Re1 {[%emt 0:04:03] [#]} (50... Bd8 {might work better.} 51. f5 Ke8) 51. f5 $1 {[%emt 0:00:00][%mdl 64] Deflection. White is clearly winning.} gxf5 {[%emt 0:00:38]} 52. h5 {[%emt 0:00:00][%cal Bh4h5,Bh5h6][%mdl 32]} Rh1 {[%emt 0:01:05]} 53. h6 {[%emt 0:00:00]} f4+ {[%emt 0:00:59]} 54. Bxf4 {[%emt 0:00:00]} ({Weaker is} 54. Kxf4 Rxh6 55. Kg4 Rh1 $14) 54... Bxd4 {[%emt 0:00:27]} 55. Rd3 {[%emt 0:09:15] Weighted Error Value: White=0.08 (flawless) /Black=0.26 (precise)} 1-0

[Event "FIDE World Senior-50 CC 2023"]
[Site "Terrasini"]
[Date "2023.10.28"]
[Round "4.4"]
[White "Estremera Panos, Sergio"]
[Black "Sturua, Zurab"]
[Result "1/2-1/2"]
[ECO "E43"]
[WhiteElo "2232"]
[BlackElo "2514"]
[Annotator "ChessBase"]
[PlyCount "47"]
[EventDate "2023.10.22"]
[EventType "swiss"]
[EventCountry "ITA"]
[SourceTitle "playchess.com"]
[Source "ChessBase"]
[SourceQuality "1"]
[TimeControl "40/5400+30:1800+30"]

1. d4 {[%emt 0:00:07]} Nf6 {[%emt 0:00:26]} 2. c4 {[%emt 0:00:14]} e6 {[%emt 0:00:16]} 3. Nc3 {[%emt 0:00:21]} Bb4 {[%emt 0:00:14]} 4. e3 {[%emt 0:00:12]} O-O {[%emt 0:00:31]} 5. Nf3 {[%emt 0:01:33]} c5 {[%emt 0:01:08]} 6. Bd3 {[%emt 0:00:59]} b6 {[%emt 0:02:32]} 7. O-O {[%emt 0:02:05]} Bb7 {[%emt 0:02:22]} 8. Na4 {[%emt 0:04:18]} cxd4 {[%emt 0:00:44]} 9. a3 {[%emt 0:00:41]} Bd6 {[%emt 0:06:47]} 10. exd4 {[%emt 0:00:48]} Bxf3 {[%emt 0:00:26]} 11. Qxf3 {[%emt 0:00:35]} Nc6 {[%emt 0:00:05]} 12. Be3 {[%emt 0:09:33]} e5 {[%emt 0:01:11]} 13. dxe5 {[%emt 0:00:49]} Nxe5 {[%emt 0:05:15]} 14. Qd1 {[%emt 0:02:31]} Qc7 {[%emt 0:12:38]} 15. h3 {[%emt 0:02:00]} Rfe8 {[%emt 0:06:48]} 16. Nc3 {[%emt 0:22:24]} Bc5 {[%emt 0:05:20]} 17. Bg5 {[%emt 0:25:08]} Qc6 {[%emt 0:01:08]} 18. Bxf6 {[%emt 0:01:09]} Qxf6 {[%emt 0:06:01]} 19. Nd5 {[%emt 0:00:48]} Qd8 {[%emt 0:06:48]} 20. b4 {[%emt 0:01:21]} Bf8 {[%emt 0:00:50]} 21. Re1 {[%emt 0:07:46]} Rc8 {[%emt 0:08:58]} 22. Rc1 {[%emt 0:02:16]} Qh4 {[%emt 0:04:54]} 23. Re4 {[%emt 0:04:57]} Qh6 {[%emt 0:00:13]} 24. f4 {[%emt 0:01:40]} 1/2-1/2

[Event "FIDE World Senior-50 CC 2023"]
[Site "Terrasini"]
[Date "2023.10.28"]
[Round "4.5"]
[White "Bischoff, Klaus"]
[Black "Nadanian, Ashot"]
[Result "1/2-1/2"]
[ECO "D30"]
[WhiteElo "2473"]
[BlackElo "2279"]
[Annotator "ChessBase"]
[PlyCount "46"]
[EventDate "2023.10.22"]
[EventType "swiss"]
[EventCountry "ITA"]
[SourceTitle "playchess.com"]
[Source "ChessBase"]
[SourceQuality "1"]
[TimeControl "40/5400+30:1800+30"]

1. Nf3 {[%emt 0:00:14]} d5 {[%emt 0:01:00]} 2. c4 {[%emt 0:00:19]} e6 {[%emt 0:00:18]} 3. d4 {[%emt 0:00:17]} c5 {[%emt 0:01:09]} 4. cxd5 {[%emt 0:00:47]} exd5 {[%emt 0:00:09]} 5. g3 {[%emt 0:00:23]} Nc6 {[%emt 0:00:36]} 6. Bg2 {[%emt 0:00:08]} Nf6 {[%emt 0:01:21]} 7. O-O {[%emt 0:00:16]} cxd4 {[%emt 0:06:52]} 8. Nxd4 {[%emt 0:03:03]} Bc5 {[%emt 0:01:11]} 9. Nb3 {[%emt 0:04:02]} Bb6 {[%emt 0:00:35]} 10. Nc3 {[%emt 0:01:54]} d4 {[%emt 0:01:36]} 11. Na4 {[%emt 0:02:25]} O-O {[%emt 0:00:42]} 12. Bg5 {[%emt 0:09:37]} h6 {[%emt 0:01:12]} 13. Bxf6 {[%emt 0:00:49]} Qxf6 {[%emt 0:00:08]} 14. Nxb6 {[%emt 0:08:31]} axb6 {[%emt 0:00:28]} 15. Bxc6 {[%emt 0:00:09]} bxc6 {[%emt 0:00:11]} 16. Qxd4 {[%emt 0:00:14]} Rd8 {[%emt 0:00:21]} 17. Qxf6 {[%emt 0:03:56]} gxf6 {[%emt 0:00:27]} 18. Rfd1 {[%emt 0:04:15]} Rxd1+ {[%emt 0:01:07]} 19. Rxd1 {[%emt 0:01:06]} Be6 {[%emt 0:00:09]} 20. Nc1 {[%emt 0:00:54]} Bxa2 {[%emt 0:00:19]} 21. Nxa2 {[%emt 0:00:11]} Rxa2 {[%emt 0:00:06]} 22. Rd6 {[%emt 0:00:22]} Rxb2 {[%emt 0:01:33]} 23. Rxc6 {[%emt 0:00:21]} Rxe2 {[%emt 0:00:57]} 1/2-1/2

[Event "FIDE World Senior-50 CC 2023"]
[Site "Terrasini"]
[Date "2023.10.28"]
[Round "4.6"]
[White "Minasian, Artashes"]
[Black "Vlassov, Nikolai"]
[Result "1/2-1/2"]
[ECO "A38"]
[WhiteElo "2462"]
[BlackElo "2283"]
[Annotator "ChessBase"]
[PlyCount "77"]
[EventDate "2023.10.22"]
[EventType "swiss"]
[EventCountry "ITA"]
[SourceTitle "playchess.com"]
[Source "ChessBase"]
[SourceQuality "1"]
[TimeControl "40/5400+30:1800+30"]

1. Nf3 {[%emt 0:00:06]} c5 {[%emt 0:00:20]} 2. g3 {[%emt 0:01:06]} Nc6 {[%emt 0:00:25]} 3. Bg2 {[%emt 0:00:04]} g6 {[%emt 0:01:22]} 4. c4 {[%emt 0:00:31]} Bg7 {[%emt 0:00:07]} 5. Nc3 {[%emt 0:00:04]} Nf6 {[%emt 0:02:51]} 6. O-O {[%emt 0:00:49]} d5 {[%emt 0:00:08]} 7. d3 {[%emt 0:01:24]} d4 {[%emt 0:04:53]} 8. Na4 {[%emt 0:00:59]} Nd7 {[%emt 0:00:10]} 9. e3 {[%emt 0:00:50]} O-O {[%emt 0:00:26]} 10. exd4 {[%emt 0:00:30]} cxd4 {[%emt 0:00:17]} 11. a3 {[%emt 0:01:56]} Rb8 {[%emt 0:03:32]} 12. Nd2 {[%emt 0:18:48]} Qc7 {[%emt 0:02:51]} 13. b4 {[%emt 0:01:41]} b6 {[%emt 0:03:20]} 14. Re1 {[%emt 0:02:57]} e5 {[%emt 0:09:31]} 15. Nb3 {[%emt 0:04:18]} Bb7 {[%emt 0:02:10]} 16. Bd2 {[%emt 0:00:08]} Nd8 {[%emt 0:00:48]} 17. Nb2 {[%emt 0:02:30]} Ne6 {[%emt 0:00:32]} 18. a4 {[%emt 0:00:18]} Rfe8 {[%emt 0:10:16]} 19. a5 {[%emt 0:01:41]} Bxg2 {[%emt 0:00:29]} 20. Kxg2 {[%emt 0:00:04]} Bf8 {[%emt 0:00:16]} 21. axb6 {[%emt 0:03:08]} axb6 {[%emt 0:01:31]} 22. Qf3 {[%emt 0:00:47]} f5 {[%emt 0:01:51]} 23. Ra2 {[%emt 0:02:12]} Nf6 {[%emt 0:00:24]} 24. Rea1 {[%emt 0:00:18]} e4 {[%emt 0:04:48]} 25. dxe4 {[%emt 0:00:20]} Nxe4 {[%emt 0:00:15]} 26. Ra7 {[%emt 0:01:17]} Rb7 {[%emt 0:00:25]} 27. Ra8 {[%emt 0:09:51]} Rxa8 {[%emt 0:00:40]} 28. Rxa8 {[%emt 0:00:04]} Ra7 {[%emt 0:00:25]} 29. Rxa7 {[%emt 0:01:16]} Qxa7 {[%emt 0:00:02]} 30. g4 {[%emt 0:08:34]} Nxd2 {[%emt 0:11:16]} 31. Nxd2 {[%emt 0:00:10]} Bxb4 {[%emt 0:01:12]} 32. gxf5 {[%emt 0:00:42]} gxf5 {[%emt 0:00:37]} 33. Qxf5 {[%emt 0:00:22]} Qf7 {[%emt 0:01:16]} 34. Qxf7+ {[%emt 0:00:24]} Kxf7 {[%emt 0:00:02]} 35. Ne4 {[%emt 0:02:27]} Nc7 {[%emt 0:03:35]} 36. Nd3 {[%emt 0:02:55]} Be7 {[%emt 0:01:18]} 37. f4 {[%emt 0:01:01]} b5 {[%emt 0:00:38]} 38. cxb5 {[%emt 0:03:19]} Nxb5 {[%emt 0:00:03]} 39. Kf3 {[%emt 0:03:26]} 1/2-1/2

[Event "FIDE World Senior-50 CC 2023"]
[Site "Terrasini"]
[Date "2023.10.28"]
[Round "4.7"]
[White "Prasad, Devaki V"]
[Black "Mohr, Georg"]
[Result "1-0"]
[ECO "B73"]
[WhiteElo "2200"]
[BlackElo "2430"]
[Annotator "ChessBase"]
[PlyCount "91"]
[EventDate "2023.10.22"]
[EventType "swiss"]
[EventCountry "ITA"]
[SourceTitle "playchess.com"]
[Source "ChessBase"]
[SourceQuality "1"]
[TimeControl "40/5400+30:1800+30"]

1. e4 {[%emt 0:00:09]} c5 {[%emt 0:00:16]} 2. Nf3 {[%emt 0:00:12]} d6 {[%emt 0:02:59]} 3. d4 {[%emt 0:00:16]} cxd4 {[%emt 0:00:05]} 4. Nxd4 {[%emt 0:00:06]} Nf6 {[%emt 0:00:05]} 5. Nc3 {[%emt 0:00:07]} g6 {[%emt 0:00:05]} 6. Be2 {[%emt 0:02:48]} Bg7 {[%emt 0:00:10]} 7. O-O {[%emt 0:00:18]} Nc6 {[%emt 0:00:06]} 8. Be3 {[%emt 0:01:09]} O-O {[%emt 0:00:06]} 9. Qd2 {[%emt 0:00:44]} Ng4 {[%emt 0:12:10]} 10. Bxg4 {[%emt 0:00:13]} Bxg4 {[%emt 0:00:01]} 11. Nd5 {[%emt 0:00:39]} Rc8 {[%emt 0:04:48]} 12. c4 {[%emt 0:01:00]} Nxd4 {[%emt 0:09:27]} 13. Bxd4 {[%emt 0:00:07]} Rxc4 {[%emt 0:00:06]} 14. Bxg7 {[%emt 0:00:20]} Kxg7 {[%emt 0:00:05]} 15. Ne3 {[%emt 0:00:16]} Rxe4 {[%emt 0:02:58]} 16. f3 {[%emt 0:01:02]} Bxf3 {[%emt 0:05:54]} 17. Rxf3 {[%emt 0:00:09]} Qb6 {[%emt 0:00:15]} 18. Kh1 {[%emt 0:07:43]} e6 {[%emt 0:00:56]} 19. h3 {[%emt 0:15:40]} f5 {[%emt 0:08:43]} 20. Rd1 {[%emt 0:02:18]} d5 {[%emt 0:03:27]} 21. b3 {[%emt 0:01:21]} Qc7 {[%emt 0:07:12]} 22. Nc2 {[%emt 0:05:05]} Rc8 {[%emt 0:10:28]} 23. Nd4 {[%emt 0:00:34]} a6 {[%emt 0:01:41]} 24. Re3 {[%emt 0:17:47]} Qe5 {[%emt 0:01:33]} 25. Rxe4 {[%emt 0:00:35]} fxe4 {[%emt 0:00:37]} 26. Qf4 {[%emt 0:00:10]} Qf6 {[%emt 0:04:52]} 27. Qd6 {[%emt 0:01:03]} Re8 {[%emt 0:00:59]} 28. Rc1 {[%emt 0:10:11]} Re7 {[%emt 0:01:23]} 29. Rc8 {[%emt 0:09:17]} g5 {[%emt 0:05:41]} 30. Nf5+ {[%emt 0:01:01]} exf5 {[%emt 0:04:10]} 31. Rg8+ {[%emt 0:00:07]} Kf7 {[%emt 0:00:11]} 32. Rf8+ {[%emt 0:01:10]} Kxf8 {[%emt 0:00:07]} 33. Qxf6+ {[%emt 0:00:12]} Ke8 {[%emt 0:00:03]} 34. Kg1 {[%emt 0:03:59]} d4 {[%emt 0:04:30]} 35. Qxd4 {[%emt 0:01:02]} Kf7 {[%emt 0:00:20]} 36. Qd5+ {[%emt 0:02:35]} Kf6 {[%emt 0:01:20]} 37. g4 {[%emt 0:00:40]} fxg4 {[%emt 0:04:03]} 38. hxg4 {[%emt 0:00:07]} e3 {[%emt 0:00:10]} 39. Qf5+ {[%emt 0:01:09]} Kg7 {[%emt 0:00:01]} 40. Qxg5+ {[%emt 0:00:11]} Kf7 {[%emt 0:00:02]} 41. Kf1 {[%emt 0:30:33]} e2+ {[%emt 0:30:05]} 42. Ke1 {[%emt 0:00:02]} Kf8 {[%emt 0:00:36]} 43. Qf5+ {[%emt 0:06:04]} Ke8 {[%emt 0:00:24]} 44. a4 {[%emt 0:00:40]} Kd8 {[%emt 0:00:33]} 45. Qf8+ {[%emt 0:02:22]} Kd7 {[%emt 0:00:15]} 46. b4 {[%emt 0:00:44]} 1-0

[Event "FIDE World Senior-50 CC 2023"]
[Site "Terrasini"]
[Date "2023.10.28"]
[Round "4.8"]
[White "Novik, Maxim"]
[Black "Milat, Marcel"]
[Result "1-0"]
[ECO "B04"]
[WhiteElo "2375"]
[BlackElo "2207"]
[Annotator "ChessBase"]
[PlyCount "49"]
[EventDate "2023.10.22"]
[EventType "swiss"]
[EventCountry "ITA"]
[SourceTitle "playchess.com"]
[Source "ChessBase"]
[SourceQuality "1"]
[TimeControl "40/5400+30:1800+30"]

1. e4 {[%emt 0:00:30]} Nf6 {[%emt 0:06:51]} 2. e5 {[%emt 0:00:00]} Nd5 {[%emt 0:00:11]} 3. d4 {[%emt 0:00:00]} d6 {[%emt 0:00:07]} 4. Nf3 {[%emt 0:00:06]} Nb6 {[%emt 0:01:43]} 5. Bd3 {[%emt 0:04:09]} Nc6 {[%emt 0:00:59]} 6. exd6 {[%emt 0:13:54]} Qxd6 {[%emt 0:01:50]} 7. O-O {[%emt 0:02:32]} Bg4 {[%emt 0:00:10]} 8. h3 {[%emt 0:03:18]} Bh5 {[%emt 0:00:40]} 9. c3 {[%emt 0:07:56]} O-O-O {[%emt 0:03:48]} 10. a4 {[%emt 0:03:43]} e5 {[%emt 0:09:56]} 11. a5 {[%emt 0:00:26]} Nd7 {[%emt 0:03:38]} 12. a6 {[%emt 0:02:05]} exd4 {[%emt 0:03:50]} 13. axb7+ {[%emt 0:00:25]} Kb8 {[%emt 0:00:02]} 14. Be4 {[%emt 0:07:08]} d3 {[%emt 0:23:55]} 15. Qa4 {[%emt 0:06:51]} Nc5 {[%emt 0:03:15]} 16. Qxc6 {[%emt 0:00:27]} Bxf3 {[%emt 0:00:07]} 17. Bxf3 {[%emt 0:01:45]} Qxc6 {[%emt 0:00:20]} 18. Bxc6 {[%emt 0:00:02]} Nb3 {[%emt 0:00:35]} 19. Ra4 {[%emt 0:01:26]} Rd6 {[%emt 0:11:14]} 20. Bf3 {[%emt 0:00:21]} d2 {[%emt 0:00:09]} 21. Nxd2 {[%emt 0:00:20]} Nxd2 {[%emt 0:00:03]} 22. Bxd2 {[%emt 0:00:08]} Rxd2 {[%emt 0:00:08]} 23. b4 {[%emt 0:01:12]} Rc2 {[%emt 0:02:53]} 24. Rxa7 {[%emt 0:02:04]} c6 {[%emt 0:00:41]} 25. Bxc6 {[%emt 0:00:24]} 1-0

[Event "FIDE World Senior-50 CC 2023"]
[Site "Terrasini"]
[Date "2023.10.28"]
[Round "4.9"]
[White "Morin, Yves"]
[Black "Stefansson, Hannes"]
[Result "0-1"]
[ECO "B21"]
[WhiteElo "2169"]
[BlackElo "2529"]
[Annotator "ChessBase"]
[PlyCount "90"]
[EventDate "2023.10.22"]
[EventType "swiss"]
[EventCountry "ITA"]
[SourceTitle "playchess.com"]
[Source "ChessBase"]
[SourceQuality "1"]
[TimeControl "40/5400+30:1800+30"]

1. e4 {[%emt 0:00:11]} c5 {[%emt 0:00:14]} 2. d3 {[%emt 0:00:29]} Nc6 {[%emt 0:01:49]} 3. f4 {[%emt 0:00:45]} g6 {[%emt 0:05:16]} 4. Nf3 {[%emt 0:00:56]} Bg7 {[%emt 0:00:27]} 5. Be2 {[%emt 0:02:23]} Nf6 {[%emt 0:02:36]} 6. O-O {[%emt 0:02:15]} d5 {[%emt 0:00:46]} 7. e5 {[%emt 0:01:42]} Ng4 {[%emt 0:00:36]} 8. c3 {[%emt 0:01:24]} d4 {[%emt 0:00:40]} 9. Na3 {[%emt 1:24:55]} f6 {[%emt 0:02:22]} 10. h3 {[%emt 0:00:00]} Nh6 {[%emt 0:00:49]} 11. exf6 {[%emt 0:00:00]} Bxf6 {[%emt 0:02:00]} 12. Bd2 {[%emt 0:00:00]} Nf5 {[%emt 0:01:53]} 13. Qe1 {[%emt 0:00:00]} h5 {[%emt 0:03:07]} 14. Nc4 {[%emt 0:00:00]} Qd5 {[%emt 0:06:20]} 15. Nce5 {[%emt 0:00:00]} Bxe5 {[%emt 0:01:36]} 16. Nxe5 {[%emt 0:00:00]} Nxe5 {[%emt 0:00:23]} 17. fxe5 {[%emt 0:00:00]} Be6 {[%emt 0:03:42]} 18. Bf3 {[%emt 0:00:00]} Qd7 {[%emt 0:00:07]} 19. c4 {[%emt 0:00:00]} h4 {[%emt 0:02:49]} 20. Bf4 {[%emt 0:00:00]} a5 {[%emt 0:05:25]} 21. b3 {[%emt 0:00:00]} Ra6 {[%emt 0:02:15]} 22. Rb1 {[%emt 0:00:00]} b5 {[%emt 0:07:31]} 23. a4 {[%emt 0:07:00]} b4 {[%emt 0:00:37]} 24. Qf2 {[%emt 0:00:00]} Kd8 {[%emt 0:02:06]} 25. Bg4 {[%emt 0:00:00]} Ra8 {[%emt 0:01:59]} 26. Rb2 {[%emt 0:00:00]} Kc7 {[%emt 0:05:15]} 27. Bxf5 {[%emt 0:00:00]} gxf5 {[%emt 0:00:07]} 28. Bh2 {[%emt 0:00:00]} Rag8 {[%emt 0:01:31]} 29. Kh1 {[%emt 0:00:00]} Kb6 {[%emt 0:00:38]} 30. Qf4 {[%emt 0:00:00]} Qc6 {[%emt 0:00:41]} 31. Qf3 {[%emt 0:00:00]} Qc8 {[%emt 0:00:14]} 32. Qf4 {[%emt 0:00:00]} Rg6 {[%emt 0:00:33]} 33. Rff2 {[%emt 0:00:00]} Bd7 {[%emt 0:00:41]} 34. Rbe2 {[%emt 0:00:00]} Bc6 {[%emt 0:01:43]} 35. Kg1 {[%emt 0:01:57]} Qa8 {[%emt 0:01:59]} 36. e6 {[%emt 0:02:48]} Qb7 {[%emt 0:00:41]} 37. Kf1 {[%emt 0:00:47]} Rhg8 {[%emt 0:00:15]} 38. Qd2 {[%emt 0:00:12]} f4 {[%emt 0:02:40]} 39. Bxf4 {[%emt 0:00:22]} Bxg2+ {[%emt 0:00:42]} 40. Rxg2 {[%emt 0:00:50]} Rxg2 {[%emt 0:01:23]} 41. Rxg2 {[%emt 0:30:57]} Qf3+ {[%emt 0:30:12]} 42. Rf2 {[%emt 0:00:40]} Qxh3+ {[%emt 0:01:19]} 43. Ke2 {[%emt 0:00:25]} Rg1 {[%emt 0:01:35]} 44. Qc2 {[%emt 0:00:52]} Qxe6+ {[%emt 0:01:17]} 45. Kf3 {[%emt 0:00:38]} Qg4+ {[%emt 0:00:35]} 0-1

[Event "FIDE World Senior-50 CC 2023"]
[Site "Terrasini"]
[Date "2023.10.28"]
[Round "4.10"]
[White "Dlugy, Maxim"]
[Black "Koganov, Mikhail"]
[Result "1-0"]
[ECO "A55"]
[WhiteElo "2520"]
[BlackElo "2170"]
[Annotator "ChessBase"]
[PlyCount "98"]
[EventDate "2023.10.22"]
[EventType "swiss"]
[EventCountry "ITA"]
[SourceTitle "playchess.com"]
[Source "ChessBase"]
[SourceQuality "1"]
[TimeControl "40/5400+30:1800+30"]

1. d4 {[%emt 0:00:28]} Nf6 {[%emt 0:00:11]} 2. Nf3 {[%emt 0:01:34]} d6 {[%emt 0:00:42]} 3. c4 {[%emt 0:00:54]} Nbd7 {[%emt 0:00:31]} 4. Nc3 {[%emt 0:00:06]} e5 {[%emt 0:00:06]} 5. e4 {[%emt 0:00:04]} Be7 {[%emt 0:00:12]} 6. Be2 {[%emt 0:00:08]} O-O {[%emt 0:00:09]} 7. O-O {[%emt 0:00:04]} c6 {[%emt 0:00:19]} 8. Be3 {[%emt 0:00:12]} Qc7 {[%emt 0:00:24]} 9. d5 {[%emt 0:00:05]} Ng4 {[%emt 0:11:38]} 10. Bd2 {[%emt 0:00:46]} Nc5 {[%emt 0:00:26]} 11. b4 {[%emt 0:01:32]} Na6 {[%emt 0:00:22]} 12. Ne1 {[%emt 0:04:16]} Nf6 {[%emt 0:00:56]} 13. Nd3 {[%emt 0:07:44]} cxd5 {[%emt 0:03:02]} 14. cxd5 {[%emt 0:00:14]} Ne8 {[%emt 0:01:38]} 15. Qb3 {[%emt 0:03:19]} f5 {[%emt 0:00:45]} 16. Nxe5 {[%emt 0:05:07]} Bf6 {[%emt 0:03:31]} 17. Nc4 {[%emt 0:01:16]} fxe4 {[%emt 0:00:30]} 18. Rac1 {[%emt 0:00:56]} Qe7 {[%emt 0:05:10]} 19. Rce1 {[%emt 0:06:08]} Bxc3 {[%emt 0:04:12]} 20. Bxc3 {[%emt 0:00:53]} Qg5 {[%emt 0:00:11]} 21. Kh1 {[%emt 0:13:44]} Qxd5 {[%emt 0:02:12]} 22. Rd1 {[%emt 0:00:14]} Qf7 {[%emt 0:03:13]} 23. Nxd6 {[%emt 0:00:14]} Qxb3 {[%emt 0:03:34]} 24. axb3 {[%emt 0:00:10]} Nxd6 {[%emt 0:01:42]} 25. Rxd6 {[%emt 0:00:05]} Nc7 {[%emt 0:02:10]} 26. Bc4+ {[%emt 0:04:02]} Kh8 {[%emt 0:00:32]} 27. h3 {[%emt 0:03:56]} b5 {[%emt 0:03:58]} 28. Rc6 {[%emt 0:00:10]} Ne8 {[%emt 0:00:10]} 29. Bxb5 {[%emt 0:01:57]} Bd7 {[%emt 0:01:29]} 30. Rc5 {[%emt 0:00:29]} Bxb5 {[%emt 0:00:09]} 31. Rxb5 {[%emt 0:00:02]} Rd8 {[%emt 0:17:00]} 32. Kg1 {[%emt 0:14:26]} Rd7 {[%emt 0:06:42]} 33. Re1 {[%emt 0:01:32]} h6 {[%emt 0:05:20]} 34. Rb8 {[%emt 0:01:04]} Kh7 {[%emt 0:04:19]} 35. b5 {[%emt 0:07:18]} Rg8 {[%emt 0:02:50]} 36. Be5 {[%emt 0:02:29]} Re7 {[%emt 0:00:59]} 37. Bd4 {[%emt 0:00:03]} Rd7 {[%emt 0:02:03]} 38. Bc5 {[%emt 0:02:08]} Nf6 {[%emt 0:00:44]} 39. Rxg8 {[%emt 0:00:04]} Kxg8 {[%emt 0:00:13]} 40. Ra1 {[%emt 0:00:03]} Rb7 {[%emt 0:02:32]} 41. Ra5 {[%emt 0:30:09]} Nd5 {[%emt 0:31:04]} 42. Bxa7 {[%emt 0:00:36]} Kf7 {[%emt 0:00:40]} 43. Bd4 {[%emt 0:00:27]} Ne7 {[%emt 0:02:40]} 44. b6 {[%emt 0:01:14]} Rd7 {[%emt 0:01:01]} 45. Bc5 {[%emt 0:00:31]} Nc6 {[%emt 0:00:37]} 46. Ra4 {[%emt 0:02:46]} Rd5 {[%emt 0:00:46]} 47. b4 {[%emt 0:00:35]} Rd1+ {[%emt 0:01:00]} 48. Kh2 {[%emt 0:01:36]} Rb1 {[%emt 0:00:09]} 49. b7 {[%emt 0:00:11]} Ke6 {[%emt 0:10:17]} 1-0